[Event "Susha Chess Blitz 2022"]
[Site "Shusha"]
[Date "2022.09.24"]
[Round "16"]
[White "Maghsoodloo, Parham"]
[Black "Vidit, Santosh Gujrathi"]
[Result "0-1"]
[ECO "E10"]
[WhiteElo "2721"]
[BlackElo "2710"]
[Annotator "TA"]
[PlyCount "82"]
[EventDate "2022.09.24"]
[EventType "tourn"]
[EventCountry "AZE"]
[SourceTitle "playchess.com"]
[Source "ChessBase"]
[SourceQuality "1"]
[TimeControl "180+2"]

{[%evp 9,82,0,21,0,0,0,0,-25,-16,-22,-8,-20,-14,-33,-20,-31,-24,-31,-19,-53,-47,-58,-81,-87,-62,-141,-87,-97,0,0,0,0,22,11,14,0,0,0,0,-14,0,-19,0,-127,-108,-105,-35,-63,-53,-72,-82,-113,-33,-167,-173,-435,-446,-587,-604,-602,-591,-663,-552,-544,-550,-550,-544,-763,-761,-29992,-29993,-29993,-5609,-29994,-2329]} 1. d4 {[%emt 0:00:01]} Nf6 {[%emt 0:00:00]} 2. c4 {[%emt 0:00:01]} e6 {[%emt 0:00:01]} 3. Nf3 {[%emt 0:00:02]} d5 {[%emt 0:00:00]} 4. g3 {[%emt 0:00:01]} Bb4+ {[%emt 0:00:04]} 5. Bd2 {[%emt 0:00:01]} a5 {[%emt 0:00:01]} 6. Qc1 {[%emt 0:00:02] E11: Bogo-Indian.} O-O {[%emt 0:00:02]} 7. Bg2 {[%emt 0:00:02]} c6 {[%emt 0:00:04] [#]} 8. a3 $146 {[%emt 0:00:07] The position is equal.} ({Predecessor:} 8. O-O b6 9. Bxb4 axb4 10. Nbd2 Ba6 11. a3 Qe7 12. Ne5 Bb7 13. axb4 Rxa1 14. Qxa1 Qxb4 {½-½ (63) Sadhwani,R (2616)-Vidit,S (2727) Chess.com INT 2022}) 8... Be7 {[%emt 0:00:02]} 9. Bf4 {[%emt 0:00:12]} b6 {[%emt 0:00:03]} 10. Nbd2 {[%emt 0:00:02]} Ba6 {[%emt 0:00:02]} 11. O-O {[%emt 0:00:11]} Nbd7 {[%emt 0:00:01]} 12. Rd1 {[%emt 0:00:09][%cal Oe2e4]} Rc8 {[%emt 0:00:02]} 13. b4 {[%emt 0:00:07]} h6 {[%emt 0:00:16]} 14. h4 {[%emt 0:00:16]} Nh5 $1 {[%emt 0:00:04]} 15. Be3 {[%emt 0:00:01]} f5 {[%emt 0:00:04]} 16. Qc2 {[%emt 0:00:26]} Bd6 {[%emt 0:00:16]} ({Don't play} 16... f4 $6 17. gxf4 Nxf4 18. Bxf4 Rxf4 19. e3) 17. c5 {[%emt 0:00:21] [#]} (17. Bh3 $15) 17... Bb8 {[%emt 0:00:00]} (17... bxc5 $142 $1 18. dxc5 (18. bxc5 Bc7 $17) 18... Bb8) 18. cxb6 $17 {[%emt 0:00:05]} axb4 {[%emt 0:00:14]} (18... Qxb6 $17 19. Re1 Qc7) 19. Nb3 $11 {[%emt 0:00:04]} Qxb6 {[%emt 0:00:12]} 20. axb4 {[%emt 0:00:02]} Bc4 {[%emt 0:00:22]} 21. Nc5 {[%emt 0:00:02]} Nxc5 {[%emt 0:00:02]} 22. bxc5 {[%emt 0:00:06]} Qb7 {[%emt 0:00:05]} 23. Bh3 {[%emt 0:00:19]} Qe7 {[%emt 0:00:09]} 24. Bc1 {[%emt 0:00:10]} Nf6 {[%emt 0:00:24]} 25. Ra4 {[%emt 0:00:02]} Bb5 {[%emt 0:00:03]} 26. Rb4 {[%emt 0:00:01]} (26. Ra3 $11) 26... Ne4 $17 {[%emt 0:00:04]} 27. Bg2 {[%emt 0:00:57]} Bc7 {[%emt 0:00:04]} (27... g5 $17 28. hxg5 hxg5) 28. Bf4 $1 $15 {[%emt 0:00:04]} Bxf4 {[%emt 0:00:02]} 29. gxf4 {[%emt 0:00:00]} Ra8 {[%emt 0:00:01]} 30. Rdb1 {[%emt 0:00:02]} Ra3 {[%emt 0:00:08] Black is much more active.} (30... Kh7 $17) 31. Qb2 {[%emt 0:00:04] Loses the game.} ({White should play} 31. e3 $1 $15) 31... Rfa8 $19 {[%emt 0:00:03]} 32. Rxb5 $2 (32. Qc2 {keeps fighting.}) 32... cxb5 {[%emt 0:00:01]} 33. Qxb5 {[%emt 0:00:03]} Nc3 {[%emt 0:00:01][%csl LRb1,LRb5]} 34. Qb7 {[%emt 0:00:01]} Nxe2+ {[%emt 0:00:10]} 35. Kh2 Qxb7 {[%emt 0:00:12]} 36. Rxb7 {[%emt 0:00:02]} Nxf4 {[%emt 0:00:02]} 37. Ne5 {[%emt 0:00:02]} Nd3 {[%emt 0:00:10]} 38. Nd7 {[%emt 0:00:06]} Nxf2 {[%emt 0:00:04] [#] ...Ng4+ is the strong threat.} 39. Nb6 {[%emt 0:00:03]} Ng4+ {[%emt 0:00:02]} 40. Kg1 {[%emt 0:00:01]} Ra1+ {[%emt 0:00:03]} 41. Bf1 {[%emt 0:00:01]} R8a2 {[%emt 0:00:05] Weighted Error Value: White=0.63/Black=0.18 (very precise)} (41... R8a3 $142 42. Rb8+ Kh7 43. Rh8+ Kxh8 44. Kg2 f4 45. Kh1 Rg3 46. h5 Rxf1#) 0-1

[Event "Susha Chess Blitz 2022"]
[Site "Shusha"]
[Date "2022.09.24"]
[Round "16"]
[White "Guseinov, Gadir"]
[Black "Durarbayli, Vasif"]
[Result "1/2-1/2"]
[ECO "B23"]
[WhiteElo "2661"]
[BlackElo "2628"]
[Annotator "TA"]
[PlyCount "49"]
[EventDate "2022.09.24"]
[EventType "tourn"]
[EventCountry "AZE"]
[SourceTitle "playchess.com"]
[Source "ChessBase"]
[SourceQuality "1"]
[TimeControl "180+2"]

{[%evp 9,49,3,10,8,16,10,20,0,0,0,6,0,10,0,8,7,15,14,14,9,9,7,84,6,6,6,6,6,7,3,10,11,9,6,14,1,9,0,0,0,0,2]} 1. e4 {[%emt 0:00:01]} c5 {[%emt 0:00:00]} 2. Nc3 {[%emt 0:00:01]} d6 {[%emt 0:00:04]} 3. Bb5+ {[%emt 0:00:02]} Bd7 {[%emt 0:00:01]} 4. Bxd7+ {[%emt 0:00:01]} Qxd7 {[%emt 0:00:01]} 5. d4 {[%emt 0:00:01]} cxd4 {[%emt 0:00:01]} 6. Qxd4 {[%emt 0:00:01] B23: Closed Sicilian: Lines without g3.} Nc6 {[%emt 0:00:00]} 7. Qd3 {[%emt 0:00:00]} g6 {[%emt 0:00:01]} 8. Nf3 {[%emt 0:00:01]} Bg7 {[%emt 0:00:01]} 9. O-O {[%emt 0:00:02]} Nf6 {[%emt 0:00:01]} 10. Nd5 {[%emt 0:00:01]} O-O 11. Bg5 Nxd5 {[%emt 0:00:09]} 12. exd5 {[%emt 0:00:01]} Ne5 {[%emt 0:00:01]} 13. Nxe5 {[%emt 0:00:01]} Bxe5 14. c3 Bf6 {[%emt 0:00:04]} 15. h4 {[%emt 0:00:11] [#]} Rae8 $146 {[%emt 0:00:11] [#]} (15... Bxg5 $11 16. hxg5 f6) ({Predecessor:} 15... Bxg5 16. hxg5 e5 17. dxe6 fxe6 18. Rad1 Rad8 19. Rfe1 Rf5 20. Qe3 e5 21. c4 b6 {½-½ (48) Guseinov,G (2665)-Degardin,S (2267) Europe Echecs INT 2020}) 16. Rfe1 {[%emt 0:00:07] White is more active.} ({Better is} 16. Bh6 $1 $16) 16... Bxg5 $11 {[%emt 0:00:17] The position is equal.} 17. hxg5 {[%emt 0:00:01]} e5 {[%emt 0:00:00]} 18. dxe6 {[%emt 0:00:02]} Rxe6 {[%emt 0:00:07]} 19. Qd4 {[%emt 0:00:07]} a6 {[%emt 0:00:09]} 20. Rxe6 {[%emt 0:00:27]} Qxe6 {[%emt 0:00:06]} 21. b3 {[%emt 0:00:12]} Rc8 {[%emt 0:00:24]} 22. Rd1 {[%emt 0:00:06]} d5 {[%emt 0:00:21] Prevents c4.} 23. Qxd5 {[%emt 0:00:37]} Qxd5 {[%emt 0:00:05]} 24. Rxd5 {[%emt 0:00:01] Threatening c4.} Rxc3 {[%emt 0:00:06]} 25. Rd7 {[%emt 0:00:11] Weighted Error Value: White=0.12 (very precise) /Black=0.10 (very precise)} 1/2-1/2

[Event "Susha Chess Blitz 2022"]
[Site "Shusha"]
[Date "2022.09.24"]
[Round "16"]
[White "Mamedov, Rauf"]
[Black "Radjabov, Teimour"]
[Result "1/2-1/2"]
[ECO "D79"]
[WhiteElo "2646"]
[BlackElo "2747"]
[Annotator "TA"]
[PlyCount "22"]
[EventDate "2022.09.24"]
[EventType "tourn"]
[EventCountry "AZE"]
[SourceTitle "playchess.com"]
[Source "ChessBase"]
[SourceQuality "1"]
[TimeControl "180+2"]

{[%evp 21,22,0,18]} 1. Nf3 {[%emt 0:00:02]} Nf6 {[%emt 0:00:02]} 2. g3 {[%emt 0:00:02]} g6 {[%emt 0:00:02]} 3. Bg2 {[%emt 0:00:01]} Bg7 {[%emt 0:00:01]} 4. O-O {[%emt 0:00:03]} O-O {[%emt 0:00:07]} 5. c4 {[%emt 0:00:01]} c6 {[%emt 0:00:03]} 6. d4 {[%emt 0:00:01]} d5 {[%emt 0:00:02]} 7. cxd5 {[%emt 0:00:01]} cxd5 {[%emt 0:00:02]} 8. Ne5 {[%emt 0:00:02] [#]} Ng4 $146 {[%emt 0:00:07]} ({Predecessor:} 8... Ne4 9. Nd2 Nc6 10. Nxe4 dxe4 11. Nxc6 bxc6 12. Bxe4 Bh3 13. Re1 {½-½ (13) Matlakov,M (2674)-Giri,A (2773) Chess.com INT 2022}) 9. Nf3 {[%emt 0:00:01]} Nf6 {[%emt 0:00:01]} 10. Ne5 {[%emt 0:00:01]} Ng4 {[%emt 0:00:01]} 11. Nf3 {[%emt 0:00:01]} Nf6 {[%emt 0:00:01]} 1/2-1/2

[Event "Susha Chess Blitz 2022"]
[Site "Shusha"]
[Date "2022.09.24"]
[Round "17"]
[White "Mamedyarov, Shakhriyar"]
[Black "Vidit, Santosh Gujrathi"]
[Result "1/2-1/2"]
[ECO "D26"]
[WhiteElo "2757"]
[BlackElo "2710"]
[Annotator "TA"]
[PlyCount "52"]
[EventDate "2022.09.24"]
[EventType "tourn"]
[EventCountry "AZE"]
[SourceTitle "playchess.com"]
[Source "ChessBase"]
[SourceQuality "1"]
[TimeControl "180+2"]

{[%evp 18,52,3,14,12,0,11,4,0,12,15,27,29,32,45,14,39,7,47,8,6,6,0,5,18,15,92,91,141,0,2,0,0,0,0,0,0]} 1. d4 {[%emt 0:00:01]} d5 {[%emt 0:00:02]} 2. c4 {[%emt 0:00:01]} dxc4 {[%emt 0:00:02]} 3. Nf3 {[%emt 0:00:02]} Nf6 {[%emt 0:00:01]} 4. e3 e6 5. Bxc4 c5 6. O-O {[%emt 0:00:06]} Nc6 {[%emt 0:00:02]} 7. Nc3 {[%emt 0:00:06]} a6 {[%emt 0:00:01]} 8. Qe2 {[%emt 0:00:20]} b5 {[%emt 0:00:01]} 9. Bb3 {[%emt 0:00:01]} Bb7 {[%emt 0:00:00]} 10. Rd1 {[%emt 0:00:06]} Be7 $1 {[%emt 0:00:02][%mdl 4] is currently scoring better than 10...Qc7. D28: Queen's Gambit Accepted: Classical main line: 7 Qe2 with early ...Nc6.} 11. d5 {[%emt 0:00:10]} exd5 {[%emt 0:00:01]} 12. Nxd5 {[%emt 0:00:02]} Nxd5 {[%emt 0:00:05]} 13. Bxd5 {[%emt 0:00:04]} Qc7 {[%emt 0:00:04]} 14. a4 {[%emt 0:00:05]} b4 {[%emt 0:00:07]} 15. e4 {[%emt 0:00:07]} O-O {[%emt 0:00:02]} 16. Be3 {[%emt 0:00:05]} Na5 {[%emt 0:00:26]} 17. Rac1 {[%emt 0:00:13]} Rfd8 {[%emt 0:00:20] [#]} 18. g3 $146 {[%emt 0:00:04]} (18. Ng5 $5 {[%cal Rd5f7]} Bxd5 19. exd5 $14) ({Predecessor:} 18. Qc2 Bxd5 19. exd5 Rac8 20. Qe4 h6 21. Nd4 Bf6 22. Nf5 Nb7 23. Qg4 Kh7 24. Nxh6 gxh6 25. Qf5+ Kg7 26. Bxh6+ Kxh6 27. Qxf6+ Kh7 28. Rc4 Kg8 29. Rh4 {1-0 (29) Seifert,V (2337)-Mayerhofer,P (2191) Aschach 2003}) 18... Bxd5 {[%emt 0:00:16]} 19. Rxd5 {[%emt 0:00:09]} Rxd5 {[%emt 0:00:06]} 20. exd5 {[%emt 0:00:00]} h6 {[%emt 0:00:38]} 21. Rd1 {[%emt 0:00:40]} c4 {[%emt 0:00:13] [#]} (21... Bf6 $11 {remains equal.}) 22. Nd4 $1 $16 {[%emt 0:00:09] Strongly threatening Nf5.} Bf6 {[%emt 0:00:07] [#]} (22... Qe5 $142) 23. Nc6 {[%emt 0:00:04]} (23. Nf5 $1 $16) 23... c3 $11 {[%emt 0:00:06] The position is equal.} 24. Bf4 {[%emt 0:00:14]} ({But not} 24. Nxb4 $2 cxb2 25. Rb1 (25. Nxa6 $2 Qc4 $19) 25... Qc4 $19) 24... Qb6 {[%emt 0:00:01]} 25. Be3 {[%emt 0:00:01]} Qc7 {[%emt 0:00:01]} 26. Bf4 {[%emt 0:00:14]} ({Don't go for} 26. Nxb4 $2 cxb2 27. Rb1 (27. Nxa6 $2 Qc4 $19) 27... Qc3 $19) 26... Qb6 {[%emt 0:00:00] Weighted Error Value: White=0.25 (precise) /Black=0.18 (very precise)} 1/2-1/2

[Event "Susha Chess Blitz 2022"]
[Site "Shusha"]
[Date "2022.09.24"]
[Round "17"]
[White "Wang, Hao"]
[Black "Radjabov, Teimour"]
[Result "1/2-1/2"]
[ECO "B31"]
[WhiteElo "2722"]
[BlackElo "2747"]
[Annotator "TA"]
[PlyCount "51"]
[EventDate "2022.09.24"]
[EventType "tourn"]
[EventCountry "AZE"]
[SourceTitle "playchess.com"]
[Source "ChessBase"]
[SourceQuality "1"]
[TimeControl "180+2"]

{[%evp 18,51,0,-13,-11,-12,29,24,39,33,28,0,9,0,20,0,0,0,12,0,0,0,9,10,35,0,38,0,27,27,45,0,24,0,11,-29]} 1. e4 {[%emt 0:00:02][%cal Be2e4,Be4e5][%mdl 32]} c5 {[%emt 0:00:12]} 2. Nf3 {[%emt 0:00:01]} Nc6 {[%emt 0:00:01]} 3. Bb5 {[%emt 0:00:02]} g6 {[%emt 0:00:01]} 4. O-O {[%emt 0:00:03]} Bg7 {[%emt 0:00:01]} 5. Re1 {[%emt 0:00:02]} Nf6 {[%emt 0:00:02]} 6. e5 {[%emt 0:00:04]} Nd5 {[%emt 0:00:01]} 7. Nc3 {[%emt 0:00:01][%cal Bb1c3,Bc3e4,Be4f6][%mdl 32]} Nc7 {[%emt 0:00:04]} 8. Bxc6 {[%emt 0:00:02]} dxc6 {[%emt 0:00:02]} 9. Ne4 {[%emt 0:00:02]} b6 {[%emt 0:00:05]} 10. Nf6+ {[%emt 0:00:03]} Kf8 {[%emt 0:00:01] B31: Sicilian: 2...Nc6 3 Bb5 g6.} 11. Ne4 {[%emt 0:00:01]} h6 $1 {[%emt 0:00:06][%mdl 4] is now more promising than 11...Bg4.} 12. h3 {[%emt 0:00:05]} Ne6 {[%emt 0:00:01] White has an edge.} 13. d3 {[%emt 0:00:03]} Kg8 {[%emt 0:00:06]} 14. Be3 {[%emt 0:00:10]} Kh7 {[%emt 0:00:00]} 15. Qd2 {[%emt 0:00:10]} Qd5 {[%emt 0:00:16] [#]} 16. c4 $146 {[%emt 0:00:21]} ({Predecessor:} 16. Rad1 Bb7 17. h4 Rad8 18. b3 f5 19. exf6 exf6 20. Ng3 Rhe8 21. h5 g5 22. c4 {0-1 (42) Ivanov,M (2344)-Garriga Cazorla,P (2478) Chess.com INT 2021}) 16... Qd7 {[%emt 0:00:02]} 17. Rad1 {[%emt 0:00:01]} Rd8 {[%emt 0:00:03]} 18. Qc1 {[%emt 0:00:09]} Qc7 {[%emt 0:00:34]} 19. Bf4 {[%emt 0:00:32]} Nxf4 {[%emt 0:00:19]} 20. Qxf4 {[%emt 0:00:02]} Kg8 {[%emt 0:00:01]} 21. b3 {[%emt 0:00:32]} a5 {[%emt 0:00:02]} (21... g5 $5 {[%cal Rg5f4]} 22. Qg3 Be6 $11) 22. a4 {[%emt 0:00:02]} Bf5 {[%emt 0:00:11]} (22... g5 $5 {[%cal Rg5f4]} 23. Qh2 Ra7 $11) 23. g4 {[%emt 0:00:06]} Be6 {[%emt 0:00:02]} 24. Qg3 {[%emt 0:00:26]} Rd7 {[%emt 0:00:03]} 25. Rd2 {[%emt 0:00:01]} Rad8 {[%emt 0:00:03]} 26. Red1 {Weighted Error Value: White=0.17 (very precise) /Black=0.16 (very precise)} 1/2-1/2

[Event "Susha Chess Blitz 2022"]
[Site "Shusha"]
[Date "2022.09.24"]
[Round "17"]
[White "Guseinov, Gadir"]
[Black "Kasimdzhanov, Rustam"]
[Result "1-0"]
[ECO "C68"]
[WhiteElo "2661"]
[BlackElo "2670"]
[Annotator "TA"]
[PlyCount "57"]
[EventDate "2022.09.24"]
[EventType "tourn"]
[EventCountry "AZE"]
[SourceTitle "playchess.com"]
[Source "ChessBase"]
[SourceQuality "1"]
[TimeControl "180+2"]

{[%evp 10,57,45,52,49,62,62,27,34,36,42,31,95,95,112,83,70,57,116,122,119,118,107,110,120,108,107,111,168,139,273,270,322,319,318,322,321,336,315,320,321,270,345,318,341,333,347,332,418,380]} 1. e4 {[%emt 0:00:02]} e5 {[%emt 0:00:01]} 2. Nf3 {[%emt 0:00:01]} Nc6 {[%emt 0:00:03]} 3. Bb5 a6 4. Bxc6 {[%emt 0:00:07]} dxc6 {[%emt 0:00:01]} 5. O-O {[%emt 0:00:01]} Ne7 {[%emt 0:00:01]} 6. Nxe5 {[%emt 0:00:04]} Qd4 {[%emt 0:00:01][%csl LRe4,LRe5] C68: Ruy Lopez: Exchange Variation, sidelines.} 7. Qh5 {[%emt 0:00:01]} g6 {[%emt 0:00:01]} 8. Nf3 {[%emt 0:00:04]} (8. Qg5 $5 {[%cal Rg5f6]}) 8... Qxe4 {[%emt 0:00:06] White has an edge.} (8... gxh5 9. Nxd4 Rg8 10. Ne2 $16) 9. Nc3 $1 {[%emt 0:00:20][%cal Bb1c3,Bc3e4,Be4f6][%mdl 4] now scores much better than the old 9.Qa5.} Qf5 {[%emt 0:00:12] Prevents Qa5.} (9... Qxc2 $2 10. Qe5 f6 11. Qxf6 $18) 10. Qh4 {[%emt 0:00:01]} f6 {[%emt 0:00:46]} (10... Qxc2 $2 11. d3 (11. Qf6 Rg8 $14) 11... Qxd3 12. Rd1 $18 (12. Qf6 Rg8 $11)) (10... Bg7 $14) 11. Re1 $16 {[%emt 0:00:12] [#]} Kf7 $146 {[%emt 0:00:17]} ({Predecessor:} 11... Bd7 12. Ne4 Bg7 13. d3 h5 14. Qg3 O-O-O 15. Bf4 Nd5 16. Bxc7 h4 17. Nxh4 Qh5 18. Bxd8 Qxh4 {1-0 (39) Can,I (2380)-Ponkratov,P (2625) Tornelo INT 2020}) 12. Qg3 {[%emt 0:01:06]} Qd7 {[%emt 0:00:02]} 13. Ne4 {[%emt 0:00:09][%cal Oe4f6] Against Qd6. White is much more active. The black rooks are badly placed.} Nf5 {[%emt 0:00:06] [#] White stays focused until the end.} (13... Bg7 $1 $14) 14. Nxf6 $1 {[%emt 0:00:23][%mdl 512]} Qd6 {[%emt 0:01:06]} 15. Qxd6 {[%emt 0:00:09]} cxd6 {[%emt 0:00:03] [#]} 16. Ne4 {[%emt 0:00:08] Threatens to win with g4. Pair of Knights!} h6 {[%emt 0:00:03]} 17. d3 {[%emt 0:00:06]} g5 {[%emt 0:00:03]} 18. h3 {[%emt 0:00:03]} Bd7 {[%emt 0:00:03]} (18... d5 $16 {was necessary.}) 19. Bd2 {[%emt 0:00:01]} Kg6 {[%emt 0:00:23]} (19... Be7 $16 20. c4 Nh4) 20. Bc3 $18 {[%emt 0:00:03]} ({Don't play} 20. g4 $6 Ng7 21. Bc3 Re8 $18) 20... Rh7 {[%emt 0:00:01]} 21. g4 {[%emt 0:00:03] Nf6 is the strong threat.} Nh4 {[%emt 0:00:21]} 22. Nxh4+ {[%emt 0:00:02]} gxh4 {[%emt 0:00:01]} 23. Nf6 {[%emt 0:00:10]} Rf7 {[%emt 0:00:01]} 24. Nxd7 {[%emt 0:00:01]} Rxd7 {[%emt 0:00:01]} 25. f4 {[%emt 0:00:00][%cal Bf2f4,Bf4f5][%mdl 32]} d5 {[%emt 0:00:02]} 26. f5+ {[%emt 0:00:02]} Kh7 {[%emt 0:00:01]} 27. Kg2 {[%emt 0:00:02]} Bd6 {[%emt 0:00:02]} 28. Re6 {[%emt 0:00:01]} Bg3 {[%emt 0:00:01]} 29. Be1 {[%emt 0:00:02] Weighted Error Value: White=0.07 (flawless) /Black=0.29 (precise)} 1-0

[Event "Susha Chess Blitz 2022"]
[Site "Shusha"]
[Date "2022.09.24"]
[Round "17"]
[White "Mamedov, Rauf"]
[Black "Durarbayli, Vasif"]
[Result "1-0"]
[ECO "B50"]
[WhiteElo "2646"]
[BlackElo "2628"]
[Annotator "TA"]
[PlyCount "103"]
[EventDate "2022.09.24"]
[EventType "tourn"]
[EventCountry "AZE"]
[SourceTitle "playchess.com"]
[Source "ChessBase"]
[SourceQuality "1"]
[TimeControl "180+2"]

{[%evp 14,103,4,0,2,-5,0,0,0,-4,0,0,2,0,0,0,0,0,21,38,16,20,41,47,50,34,41,54,94,86,81,92,88,70,62,71,67,58,79,76,79,77,71,72,91,85,91,91,90,91,89,89,85,70,63,61,130,104,104,86,86,79,78,77,125,85,129,118,122,122,114,96,149,148,187,179,190,138,225,125,112,118,140,133,155,148,150,145,769,769,531,531]} 1. e4 c5 2. Nf3 {[%emt 0:00:02]} d6 {[%emt 0:00:00]} 3. Nc3 {[%emt 0:00:00]} Nf6 {[%emt 0:00:01]} 4. g3 {[%emt 0:00:01]} g6 {[%emt 0:00:01]} 5. Bg2 {[%emt 0:00:01]} Bg7 {[%emt 0:00:01]} 6. O-O {[%emt 0:00:01]} O-O {[%emt 0:00:01]} 7. d3 {[%emt 0:00:02]} Nc6 {[%emt 0:00:01]} 8. Re1 {[%emt 0:00:00]} Nd7 {[%emt 0:00:01] B25: Closed Sicilian: 3 g3, lines without early Be3.} 9. Ne2 {[%emt 0:00:14] [#]} Rb8 $146 {[%emt 0:00:42]} ({Predecessor:} 9... Nde5 10. c3 Bd7 11. Nxe5 Nxe5 12. f4 Nc6 13. Be3 b5 14. d4 cxd4 15. Nxd4 Qa5 {1-0 (37) Johannesson,H (1705)-Kvamme,I (1444) Reykjavik 2017}) 10. a4 {[%emt 0:00:01]} a6 {[%emt 0:00:03] The position is equal.} 11. c3 {[%emt 0:00:01]} b5 {[%emt 0:00:01]} 12. axb5 {[%emt 0:00:01]} axb5 {[%emt 0:00:01]} 13. d4 {[%emt 0:00:01]} b4 {[%emt 0:00:29]} 14. Be3 {[%emt 0:00:01]} bxc3 {[%emt 0:00:16]} 15. bxc3 {[%emt 0:00:01][%cal Bb2c3,Bc3d4][%mdl 32]} cxd4 {[%emt 0:00:01]} 16. cxd4 {[%emt 0:00:02]} Nf6 {[%emt 0:00:00]} 17. h3 {[%emt 0:00:41]} Nxe4 {[%emt 0:00:23]} 18. Qc2 $1 {[%emt 0:00:00][%csl LRc6,LRe4]} Bb7 {[%emt 0:00:11]} 19. Rab1 {[%emt 0:00:37] Prevents Nb4.} (19. Qxe4 Nxd4 $1 20. Nfxd4 Bxe4 21. Bxe4 d5 $17) 19... d5 {[%emt 0:00:22] [#]} 20. Rxb7 {[%emt 0:00:02]} Nxd4 {[%emt 0:00:14]} (20... Rxb7 21. Qxc6) 21. Rxb8 {[%emt 0:00:48]} ({But not} 21. Bxd4 $6 Rxb7 22. Ne5 Qd6 23. Bxe4 Bxe5 24. Bxe5 Qxe5 $11) 21... Nxc2 {[%emt 0:00:01]} 22. Rxd8 {[%emt 0:00:01] The board is on fire.} Rxd8 {[%emt 0:00:01]} 23. Rd1 {[%emt 0:00:01]} Nxe3 {[%emt 0:00:07]} 24. fxe3 {[%emt 0:00:01]} e6 {[%emt 0:00:01]} 25. Nfd4 {[%emt 0:00:11][%cal Od4e6]} Bh6 {[%emt 0:00:09] [#]} 26. Nxe6 $1 {[%emt 0:00:28]} Bxe3+ {[%emt 0:00:19]} (26... fxe6 27. Bxe4) 27. Kh2 {[%emt 0:00:01]} fxe6 {[%emt 0:00:01]} 28. Bxe4 {[%emt 0:00:01][%mdl 64] Pin} Rf8 {[%emt 0:00:01] [#] And now ...Rf2+ would win.} 29. Bg2 $1 {[%emt 0:00:01]} Rf2 {[%emt 0:00:06]} 30. Nd4 {[%emt 0:00:01]} Kf7 {[%emt 0:00:02]} 31. Nf3 {[%emt 0:00:04] Prevents Rd2.} Kf6 {[%emt 0:00:04]} 32. h4 {[%emt 0:00:01]} h6 {[%emt 0:00:02]} 33. Rd3 {[%emt 0:00:07]} Bc5 {[%emt 0:00:02]} 34. Kh3 {[%emt 0:00:02]} g5 {[%emt 0:00:03]} ({Better is} 34... Ra2 $14) 35. hxg5+ {[%emt 0:00:03]} hxg5 {[%emt 0:00:01][%cal Og5g4]} 36. Nh2 {[%emt 0:00:01] Hoping for Ng4+.} Ra2 {[%emt 0:00:09]} 37. Ng4+ {[%emt 0:00:02]} Ke7 {[%emt 0:00:01]} 38. Rb3 {[%emt 0:00:05]} Kd6 {[%emt 0:00:04]} (38... Ra7 $142) 39. Rb8 {[%emt 0:00:09]} Ra7 {[%emt 0:00:03]} 40. Rd8+ {[%emt 0:00:07]} Ke7 {[%emt 0:00:06]} 41. Rg8 {[%emt 0:00:02]} Kd6 {[%emt 0:00:01]} 42. Nf6 {[%emt 0:00:03] Inhibits Rh7+.} Bd4 {[%emt 0:00:03] [#]} (42... Ke5 $142) 43. Nh5 $1 $16 {[%emt 0:00:02]} Be3 {[%emt 0:00:02]} 44. Rg6 {[%emt 0:00:02]} Rh7 {[%emt 0:00:08]} 45. Kg4 {[%emt 0:00:01]} (45. Bf3 $18) 45... Re7 {[%emt 0:00:02]} (45... Ke7 $16 46. Rg7+ (46. Ng7 Kf7 $11) 46... Rxg7 47. Nxg7 Kf7) 46. Nf6 {[%emt 0:00:04]} (46. Ng7 $18 {Nf5+ is the strong threat.} Ke5 47. Kf3) 46... Ke5 {[%emt 0:00:02]} 47. Ng8 {[%emt 0:00:04]} Re8 {[%emt 0:00:02]} 48. Nh6 {[%emt 0:00:01]} Rf8 {[%emt 0:00:01]} 49. Bh3 {[%emt 0:00:06]} d4 {[%emt 0:00:02]} 50. Kh5 {[%emt 0:00:00]} d3 $2 {[%emt 0:00:01][%mdl 8192]} (50... Bf2 $16 51. Rxe6+ (51. Ng4+ Ke4 $18) 51... Kd5) 51. Rxe6+ $18 {[%emt 0:00:02]} Kd4 {[%emt 0:00:01]} 52. Nf5+ {[%emt 0:00:01] Weighted Error Value: White=0.09 (flawless) /Black=0.15 (very precise)} 1-0

[Event "Susha Chess Blitz 2022"]
[Site "Shusha"]
[Date "2022.09.24"]
[Round "18"]
[White "Radjabov, Teimour"]
[Black "Wang, Hao"]
[Result "1/2-1/2"]
[ECO "D27"]
[WhiteElo "2747"]
[BlackElo "2722"]
[Annotator "TA"]
[PlyCount "39"]
[EventDate "2022.09.24"]
[EventType "tourn"]
[EventCountry "AZE"]
[SourceTitle "playchess.com"]
[Source "ChessBase"]
[SourceQuality "1"]
[TimeControl "180+2"]

{[%evp 15,16,21,21]} 1. d4 {[%emt 0:00:01]} d5 {[%emt 0:00:01]} 2. c4 {[%emt 0:00:01]} dxc4 {[%emt 0:00:02]} 3. Nf3 {[%emt 0:00:01]} Nf6 {[%emt 0:00:01]} 4. e3 {[%emt 0:00:01]} e6 {[%emt 0:00:02]} 5. Bxc4 {[%emt 0:00:02]} c5 {[%emt 0:00:01]} 6. O-O {[%emt 0:00:02]} a6 {[%emt 0:00:02]} 7. dxc5 {[%emt 0:00:02]} Qxd1 {[%emt 0:00:02]} 8. Rxd1 {[%emt 0:00:02]} Bxc5 {[%emt 0:00:02] [#]} {Predecessor:} 9. b3 $146 {D27: Queen's Gambit Accepted: Classical main line: 7 e4!? and 7 a4.} b6 10. Bb2 Bb7 11. Nbd2 Nbd7 12. Be2 O-O 13. Rac1 Rfd8 14. Nc4 Rac8 15. Ne1 Ne8 16. h4 f6 17. Bg4 Kf7 18. Nd3 Bf8 19. Nf4 f5 20. Be2 {1-0 (56) Fedoseev,V (2686)-Nyzhnyk,I (2686) Chess.com INT 2022} 1/2-1/2